bitfinex/quotes_SOLUSD_20220210
["timestamp","ask_amount","ask_price","bid_price","bid_amount"]
[1644527156927,5.89709188,109.09,109.07,13.7538]
[1644527157125,44.09063102,109.08,109.07,13.7538]
[1644527157926,5.89709188,109.09,109.07,13.92110806]
[1644527158126,4.583,109.12,109.07,15.74393309]
[1644527158329,23.5725,109.13,109.08,10.79]
[1644527158526,23.5725,109.13,109.09,13.7505]
[1644527158927,37.25404681,109.12,109.09,13.7505]
[1644527159330,37.25404681,109.12,109.1,0.16730806]
[1644527159727,4.583,109.15,109.1,13.91750806]
[1644527159927,4.583,109.15,109.1,24.70750806]
[1644527160129,28.8032,109.16,109.1,24.70750806]
[1644527160328,34.8032,109.16,109.1,24.70750806]
[1644527161228,40.16194545,109.15,109.1,24.70750806]
[1644527167842,53.91304545,109.15,109.1,13.91750806]
[1644527168144,4.581,109.14,109.09,13.7519]
[1644527168740,38.13816811,109.13,109.09,13.7519]
[1644527179959,27.1468,109.15,109.09,13.7519]
[1644527180157,22.5648,109.15,109.09,24.5419]
[1644527180358,22.5648,109.15,109.09,24.7919]
[1644527180557,22.5648,109.15,109.09,26.09363152]
[1644527180759,22.5648,109.15,109.09,27.91645655]
[1644527180957,37.78945532,109.14,109.09,27.91645655]
[1644527181658,37.78945532,109.14,109.11,13.7466]
[1644527181869,37.78945532,109.14,109.11,24.5366]
[1644527183981,24.2222,109.16,109.13,13.7467]
[1644527184183,18.3292,109.18,109.13,13.7467]
[1644527184583,24.3292,109.18,109.13,13.7467]
[1644527184983,36.25777745,109.17,109.13,13.7467]
[1644527185185,4.58,109.16,109.13,13.7467]
[1644527185587,4.58,109.16,109.14,0.10188958]
[1644527185889,5.89709188,109.15,109.14,0.10188958]
[1644527186087,5.89709188,109.15,109.13,13.7467]
[1644527186287,44.50942314,109.14,109.13,13.7467]
[1644527186786,44.50942314,109.14,109.13,13.84859892]
[1644527186988,44.50942314,109.14,109.13,13.7467]
[1644527187887,44.50942314,109.14,109.13,13.84859892]
[1644527188291,44.50942314,109.14,109.13,13.7467]
[1644527189991,44.50942314,109.14,109.12,13.7483]
[1644527190894,44.50942314,109.14,109.09,56.8677]
[1644527191095,44.50942314,109.14,109.11,13.7492]
[1644527194595,5.89709188,109.13,109.11,13.7492]
[1644527195397,44.50942314,109.14,109.11,13.7492]
[1644527197400,40.0,109.12,109.09,10.79]
[1644527197600,40.0,109.12,109.08,45.8564]
[1644527197799,40.0,109.12,109.08,0.024]
[1644527198003,40.0,109.12,109.09,13.7509]
[1644527198202,34.50846122,109.11,109.09,13.7509]
[1644527198602,34.50846122,109.11,109.07,10.814]
[1644527198603,5.89709188,109.1,109.07,10.814]
[1644527198807,5.89709188,109.1,109.06,12.09173152]
[1644527199000,5.89709188,109.1,109.07,13.7549]
[1644527199604,36.43466248,109.09,109.07,13.7549]
[1644527199803,36.43466248,109.09,109.05,12.11573152]
[1644527199804,5.89709188,109.08,109.05,12.11573152]
[1644527200103,5.89709188,109.08,109.03,10.79]
[1644527200301,4.583,109.07,109.02,10.79]
[1644527200708,42.00137104,109.06,109.02,10.79]
[1644527201703,42.00137104,109.06,109.03,13.7595]
[1644527202105,3.03219997,109.05,109.03,13.7595]
[1644527202507,45.88820158,109.04,109.02,10.79]
[1644527202707,2.86489191,109.03,109.01,13.8412]
[1644527202908,2.86489191,109.03,108.99,10.79]
[1644527203109,7.45089191,109.03,108.97,13.37610543]
[1644527203311,2.86489191,109.03,108.96,50.2865903]
[1644527203612,39.97795125,109.02,108.98,14.24720564]
[1644527203811,39.97795125,109.02,108.96,1.82268487]
[1644527204209,39.97795125,109.02,108.97,13.7657]
[1644527204410,39.97795125,109.02,108.94,45.8857]
[1644527204411,39.97795125,109.02,108.94,58.49838487]
[1644527204611,44.56495125,109.02,108.95,14.25268429]
[1644527205612,44.56495125,109.02,108.95,14.50268429]
[1644527205815,39.97795125,109.02,108.95,28.01988429]
[1644527206016,39.97795125,109.02,108.95,13.7672]
[1644527206421,44.70601862,109.0,108.95,13.7672]
[1644527207521,44.70601862,109.0,108.93,13.77]
[1644527207720,40.57248937,108.98,108.93,19.77]
[1644527208631,46.57248937,108.98,108.93,19.77]
[1644527209045,46.57248937,108.98,108.92,1.82268487]
[1644527209248,40.57248937,108.98,108.92,1.82268487]
[1644527209445,46.57248937,108.98,108.92,1.82268487]
[1644527209646,57.62548937,108.98,108.91,13.7725]
[1644527209846,57.62548937,108.98,108.89,1.82268487]
[1644527210650,24.9964,108.97,108.89,1.82268487]
[1644527210851,40.84214118,108.96,108.89,15.84768487]
[1644527211457,40.84214118,108.96,108.9,14.23851095]
[1644527211851,40.84214118,108.96,108.9,16.31119582]
[1644527212057,40.84214118,108.96,108.9,1.82268487]
[1644527212251,40.84214118,108.96,108.9,2.07268487]
[1644527212474,40.84214118,108.96,108.9,1.82268487]
[1644527212653,40.84214118,108.96,108.9,2.07268487]
[1644527212850,40.84214118,108.96,108.91,13.7726]
[1644527213755,40.84214118,108.96,108.91,15.84528487]
[1644527213953,40.84214118,108.96,108.91,15.59528487]
[1644527214354,40.84214118,108.96,108.91,13.7726]
[1644527214959,40.84214118,108.96,108.89,15.59748487]
[1644527215356,40.84214118,108.96,108.9,0.024]
[1644527215959,40.84214118,108.96,108.9,1.846365]
[1644527216159,40.84214118,108.96,108.9,0.024]
[1644527216761,40.84214118,108.96,108.9,15.620465]
[1644527217159,40.84214118,108.96,108.91,39.65622573]
[1644527217359,40.84214118,108.96,108.91,39.90622573]
[1644527217560,40.84214118,108.96,108.92,1.822365]
[1644527217760,4.588,108.99,108.92,2.072365]
[1644527217960,4.588,108.99,108.93,0.024]
[1644527218162,4.588,108.99,108.93,13.7934]
[1644527218361,4.588,108.99,108.93,15.865765]
[1644527218560,4.588,108.99,108.94,1.822365]
[1644527218761,34.29500087,108.98,108.92,1.846365]
[1644527218962,34.29500087,108.98,108.93,0.024]
[1644527219161,34.29500087,108.98,108.92,1.822365]
[1644527219762,34.29500087,108.98,108.92,15.593165]
[1644527219984,34.29500087,108.98,108.92,15.617165]
[1644527224169,40.29500087,108.98,108.92,15.617165]
[1644527225874,40.29500087,108.98,108.92,15.867165]
[1644527226475,34.29500087,108.98,108.92,15.617165]
[1644527227081,34.29500087,108.98,108.92,0.024]
[1644527227280,34.29500087,108.98,108.9,14.0479]
[1644527227692,40.29500087,108.98,108.9,14.0479]
[1644527228997,40.29500087,108.98,108.91,1.822365]
[1644527229297,34.29500087,108.98,108.93,13.771]
[1644527229500,34.29500087,108.98,108.93,13.795]
[1644527230096,34.29500087,108.98,108.93,15.617365]
[1644527230298,34.29500087,108.98,108.93,15.867365]
[1644527231401,34.29500087,108.98,108.93,15.617365]
[1644527232198,34.29500087,108.98,108.93,13.795]
[1644527233498,82.0,108.97,108.93,0.024]
[1644527233698,91.525,108.97,108.92,13.7969]
[1644527233902,91.525,108.97,108.91,0.024]
[1644527234102,24.6785,108.96,108.89,0.024]
[1644527234502,44.21756192,108.95,108.89,0.024]
[1644527234703,44.21756192,108.95,108.9,13.7745]
[1644527235315,44.21756192,108.95,108.9,13.7985]
[1644527235513,44.21756192,108.95,108.9,15.596865]
[1644527237313,44.21756192,108.95,108.9,13.7745]
[1644527241021,44.21756192,108.95,108.9,15.596865]
[1644527241218,44.21756192,108.95,108.9,15.870865]
[1644527242617,44.21756192,108.95,108.91,37.4696193]
[1644527242818,44.21756192,108.95,108.92,13.771]
[1644527243019,44.21756192,108.95,108.93,0.16730806]
[1644527243616,5.89709188,108.94,108.93,0.16730806]
[1644527243817,44.21756192,108.95,108.91,47.725665]
[1644527244216,44.21756192,108.95,108.93,13.7713]
[1644527244417,44.21756192,108.95,108.89,47.758265]
[1644527244617,52.96356192,108.95,108.89,45.9119]
[1644527244821,58.96356192,108.95,108.89,45.9359]
[1644527245216,52.96356192,108.95,108.89,45.9359]
[1644527245419,58.96356192,108.95,108.89,45.9359]
[1644527245719,58.96356192,108.95,108.91,13.7749]
[1644527245919,44.21756192,108.95,108.91,13.7749]
[1644527246418,44.21756192,108.95,108.9,0.024]
[1644527246618,50.21756192,108.95,108.89,0.024]
[1644527246817,50.21756192,108.95,108.88,72.4352]
[1644527247420,50.21756192,108.95,108.88,86.2139]
[1644527250422,50.21756192,108.95,108.88,88.04287534]
[1644527250624,44.21756192,108.95,108.88,123.00874686]
[1644527252830,29.4674,108.99,108.88,123.00874686]
[1644527253045,4.588,108.99,108.89,10.814]
[1644527253242,4.588,108.99,108.92,13.7673]
[1644527253441,4.588,108.99,108.93,0.024]
[1644527253641,4.588,108.99,108.93,12.64297534]
[1644527253855,4.588,108.99,108.94,47.61690434]
[1644527254357,36.7151946,108.98,108.96,13.7662]
[1644527254761,36.7151946,108.98,108.97,0.16730806]
[1644527254957,36.7151946,108.98,108.95,45.8873]
[1644527255858,36.7151946,108.98,108.97,13.7672]
[1644527256659,4.588,108.99,108.97,13.7672]
[1644527257062,16.48509188,108.99,108.97,13.7672]
[1644527257662,52.60235355,108.99,108.97,13.7672]
[1644527258160,16.48509188,108.99,108.97,13.7672]
[1644527258763,16.48509188,108.99,108.98,13.93380806]
[1644527258963,11.89709188,108.99,108.98,13.93380806]
[1644527259163,6.0,108.99,108.98,13.93380806]
[1644527259566,40.84846173,108.99,108.98,13.7665]
[1644527260171,40.84846173,108.99,108.98,13.93380806]
[1644527261266,6.0,108.99,108.98,13.93380806]
[1644527261464,8.86489191,108.99,108.98,13.7665]
[1644527261864,8.86489191,108.99,108.98,13.93380806]
[1644527262065,6.0,108.99,108.98,13.93380806]
[1644527262266,41.68378538,108.99,108.98,13.93380806]
[1644527262467,41.68378538,108.99,108.98,13.7665]
[1644527262770,47.58087726,108.99,108.98,13.7665]
[1644527263068,47.58087726,108.99,108.96,0.024]
[1644527263366,47.58087726,108.99,108.95,0.024]
[1644527263766,47.58087726,108.99,108.94,56.7037]
[1644527263967,48.77324122,108.97,108.94,56.7037]
[1644527264168,48.77324122,108.97,108.95,0.16730806]
[1644527264369,3.03219997,108.96,108.95,0.16730806]
[1644527264574,5.89709188,108.96,108.95,13.93570806]
[1644527264768,5.89709188,108.96,108.95,13.7684]
[1644527265872,5.89709188,108.96,108.95,6.40338139]
[1644527266070,5.89709188,108.96,108.91,1.85297534]
[1644527266270,5.89709188,108.96,108.9,8.40561436]
[1644527266472,5.89709188,108.96,108.91,0.024]
[1644527266676,5.89709188,108.96,108.92,13.7726]
[1644527266874,23.40646242,108.94,108.91,0.024]
[1644527267072,23.40646242,108.94,108.89,0.024]
[1644527267271,23.40646242,108.94,108.89,1.82897534]
[1644527267571,23.40646242,108.94,108.91,13.7739]
[1644527267775,31.04546242,108.94,108.91,13.7739]
[1644527268773,31.04546242,108.94,108.9,13.8002]
[1644527268974,31.04546242,108.94,108.9,13.7762]
[1644527269175,23.40646242,108.94,108.9,13.7762]
[1644527269674,23.40646242,108.94,108.89,0.024]
[1644527269675,4.59,108.93,108.89,13.8014]
[1644527269874,4.59,108.93,108.89,13.7774]
[1644527270478,4.59,108.93,108.88,72.4352]
[1644527270676,35.30075437,108.92,108.88,72.4112]
[1644527270876,35.30075437,108.92,108.88,64.68949763]
[1644527271077,29.1572469,108.9,108.88,64.68949763]
[1644527271277,7.994,108.95,108.86,0.024]
[1644527271278,10.48809188,108.89,108.86,0.024]
[1644527271476,5.89709188,108.89,108.84,0.024]
[1644527271678,4.591,108.88,108.82,0.024]
[1644527272176,22.9193917,108.9,108.82,15.65437257]
[1644527272377,4.593,108.89,108.83,0.024]
[1644527272878,27.9721,108.91,108.83,0.024]
[1644527273278,33.9721,108.91,108.83,0.024]
[1644527273778,18.88341532,108.9,108.83,13.808]
[1644527273978,4.591,108.89,108.84,0.024]
[1644527274180,4.591,108.89,108.83,19.808]
[1644527274377,5.41569543,108.88,108.83,19.808]
[1644527275378,5.41569543,108.88,108.83,13.808]
[1644527275379,4.593,108.87,108.83,13.808]
[1644527275582,5.41569543,108.88,108.83,13.808]
[1644527275978,5.41569543,108.88,108.83,15.65337257]
[1644527276778,11.41569543,108.88,108.83,13.808]
[1644527276981,5.41569543,108.88,108.83,13.808]
[1644527277281,11.41569543,108.88,108.83,0.024]
[1644527277478,4.593,108.87,108.83,0.024]
[1644527277677,18.88341532,108.86,108.83,0.024]
[1644527277880,5.89709188,108.85,108.82,13.7855]
[1644527278480,5.89709188,108.85,108.81,13.7869]
[1644527278780,5.41569543,108.84,108.81,13.7869]
[1644527279180,5.89709188,108.83,108.82,0.16730806]
[1644527279383,5.89709188,108.83,108.79,1.84537257]
[1644527279780,5.89709188,108.83,108.79,13.7881]
[1644527280008,5.89709188,108.83,108.79,19.7881]
[1644527280380,18.88341532,108.82,108.79,19.7881]
[1644527280583,18.88341532,108.82,108.79,6.0]
[1644527280584,3.03219997,108.81,108.79,6.0]
[1644527280784,18.88341532,108.82,108.77,1.86937257]
[1644527280981,18.88341532,108.82,108.77,15.65967257]
[1644527281482,18.88341532,108.82,108.77,13.8143]
[1644527282581,18.88341532,108.82,108.77,0.024]
[1644527283880,24.88341532,108.82,108.77,0.024]
[1644527288188,29.0596,108.85,108.77,15.66067257]
[1644527288382,29.0596,108.85,108.78,0.024]
[1644527288783,29.0596,108.85,108.78,1.86937257]
[1644527288984,50.89425865,108.85,108.79,0.024]
[1644527289284,46.29925865,108.85,108.79,0.024]
[1644527289685,46.29925865,108.85,108.8,13.7876]
[1644527289884,46.29925865,108.85,108.79,0.024]
[1644527290083,4.594,108.84,108.79,0.024]
[1644527290286,2.4644521,108.83,108.78,1.86937257]
[1644527290489,2.4644521,108.83,108.79,0.024]
[1644527290689,2.4644521,108.83,108.78,2.11937257]
[1644527290885,2.4644521,108.83,108.78,15.90857257]
[1644527292487,2.4644521,108.83,108.78,15.65857257]
[1644527293195,2.4644521,108.83,108.78,13.8132]
[1644527293387,8.4644521,108.83,108.78,0.024]
[1644527293590,4.595,108.82,108.77,13.8158]
[1644527293790,4.595,108.82,108.77,0.024]
[1644527293988,21.37969599,108.81,108.77,0.024]
[1644527294294,21.37969599,108.81,108.75,0.024]
[1644527294487,21.37969599,108.81,108.76,13.793]
[1644527294688,4.596,108.8,108.76,0.024]
[1644527294888,4.596,108.8,108.73,0.024]
[1644527294889,9.07,108.8,108.73,0.024]
[1644527295094,4.597,108.79,108.73,0.024]
[1644527295289,12.14965423,108.78,108.72,0.024]
[1644527295489,12.14965423,108.78,108.73,0.024]
[1644527295695,23.8515,108.79,108.73,13.7969]
[1644527295892,4.597,108.81,108.73,13.8209]
[1644527296092,6.0,108.82,108.74,0.024]
[1644527296291,6.0,108.82,108.75,10.79]
[1644527296492,4.596,108.84,108.76,0.024]
[1644527296691,4.596,108.84,108.76,51.25635969]
[1644527296896,24.4646,108.85,108.77,1.84509363]
[1644527297092,4.595,108.84,108.77,1.86909363]
[1644527297293,29.0596,108.85,108.78,0.024]
[1644527297694,43.6455711,108.85,108.78,0.024]
[1644527298095,49.6455711,108.85,108.78,0.024]
[1644527298297,49.6455711,108.85,108.77,0.024]
[1644527298493,49.6455711,108.85,108.79,0.024]
[1644527298693,49.6455711,108.85,108.75,1.86909363]
[1644527298899,49.6455711,108.85,108.76,0.024]
[1644527299706,49.6455711,108.85,108.77,55.88354396]
[1644527299901,49.6455711,108.85,108.78,0.024]
[1644527301108,30.4646,108.85,108.78,0.024]
[1644527301303,24.4646,108.85,108.79,13.7893]
[1644527301505,4.594,108.9,108.79,13.8133]
[1644527301705,47.2866,108.89,108.8,1.84509363]
[1644527301902,47.2866,108.89,108.81,0.024]
[1644527302106,14.12917346,108.88,108.81,35.01806797]
[1644527302304,14.12917346,108.88,108.82,0.024]
[1644527302721,47.2866,108.89,108.82,0.024]
[1644527302924,47.2866,108.89,108.83,13.7845]
[1644527303125,47.2866,108.89,108.83,13.8085]
[1644527303329,47.2866,108.89,108.83,15.90359363]
[1644527303527,47.2866,108.89,108.83,15.65359363]
[1644527303733,37.54318848,108.91,108.84,38.87325519]
[1644527303925,37.54318848,108.91,108.84,0.024]
[1644527304127,37.54318848,108.91,108.85,13.806]
[1644527304325,43.54318848,108.91,108.85,13.806]
[1644527304527,52.2581,108.93,108.85,21.173]
[1644527304727,47.6651,108.93,108.86,0.024]
[1644527304927,4.591,108.96,108.86,0.024]
[1644527305127,51.6149,108.96,108.87,1.84509363]
[1644527305327,51.6149,108.96,108.88,13.7782]
[1644527305527,13.9823687,108.95,108.88,13.7782]
[1644527306428,13.9823687,108.95,108.88,50.12908214]
[1644527306628,13.9823687,108.95,108.88,60.91908214]
[1644527307029,47.0239,108.96,108.88,60.91908214]
[1644527307230,52.7327,108.99,108.88,74.25617577]
[1644527307630,58.7327,108.99,108.88,74.25617577]
[1644527307830,58.7327,108.99,108.88,37.90529363]
[1644527308031,58.7327,108.99,108.88,24.8182]
[1644527308231,58.7327,108.99,108.88,24.5682]
[1644527308533,58.7327,108.99,108.88,13.7782]
[1644527308731,11.27205769,108.98,108.88,13.7782]
[1644527308931,3.44375195,108.96,108.88,13.7782]
[1644527309232,11.27205769,108.94,108.88,13.7782]
[1644527309431,4.59,108.93,108.88,13.7782]
[1644527310741,11.27205769,108.94,108.88,13.7782]
[1644527311457,11.27205769,108.94,108.87,13.7791]
[1644527311650,4.591,108.93,108.85,0.024]
[1644527311850,4.591,108.93,108.82,17.04]
[1644527311851,24.7959,108.92,108.82,17.04]
[1644527312048,24.7959,108.92,108.83,0.024]
[1644527312249,3.44375195,108.91,108.83,48.75718556]
[1644527312450,3.44375195,108.91,108.84,0.024]
[1644527312851,3.44375195,108.91,108.85,13.7817]
[1644527313058,3.44375195,108.91,108.85,13.8057]
[1644527316083,3.44375195,108.91,108.85,57.97253243]
[1644527316288,24.7959,108.92,108.85,58.22253243]
[1644527316479,30.7959,108.92,108.85,57.97253243]
[1644527317281,30.7959,108.92,108.85,13.8057]
[1644527317580,4.591,108.91,108.85,13.8057]
[1644527317782,30.7959,108.92,108.85,13.8057]
[1644527318382,10.4803961,108.91,108.85,13.8057]
[1644527318984,10.4803961,108.91,108.85,0.024]
[1644527319186,4.591,108.9,108.83,0.024]
[1644527319386,52.8836,108.9,108.84,0.024]
[1644527319587,52.8836,108.9,108.79,0.024]
[1644527319787,4.23541354,108.89,108.78,38.27809888]
[1644527319988,4.594,108.88,108.79,1.84509363]
[1644527320190,10.4803961,108.87,108.79,1.86909363]
[1644527320386,15.0743961,108.87,108.81,13.7861]
[1644527320587,15.0743961,108.87,108.81,13.8101]
[1644527321686,10.4803961,108.87,108.81,13.8101]
[1644527322989,15.0733961,108.87,108.81,13.8101]
[1644527323892,21.0733961,108.87,108.81,13.8101]
[1644527324290,16.4803961,108.87,108.81,13.8101]
[1644527326092,6.0,108.87,108.81,13.8101]
[1644527326291,24.7427,108.88,108.81,15.90519363]
[1644527326595,6.0,108.87,108.82,0.024]
[1644527326793,6.0,108.87,108.83,13.7813]
[1644527326994,23.5499,108.9,108.84,35.77708479]
[1644527327194,6.0,108.87,108.84,35.77708479]
[1644527327394,23.5499,108.9,108.84,36.02708479]
[1644527327694,6.0,108.87,108.84,36.02708479]
[1644527327899,23.5499,108.9,108.85,0.16730806]
[1644527328094,6.0,108.87,108.85,0.16730806]
[1644527328297,29.5499,108.9,108.85,0.16730806]
[1644527328493,29.5499,108.9,108.85,13.94800806]
[1644527328696,29.5499,108.9,108.85,15.79310169]
[1644527328904,29.5499,108.9,108.86,39.60598826]
[1644527329407,6.0,108.9,108.87,13.7786]
[1644527329610,4.591,108.95,108.88,0.16730806]
[1644527329807,29.1792,108.97,108.88,1.84509363]
[1644527330007,24.5882,108.97,108.88,1.84509363]
[1644527330207,24.5882,108.97,108.88,2.09509363]
[1644527330507,37.70707886,108.97,108.89,35.78044117]
[1644527330706,37.70707886,108.97,108.88,2.09509363]
[1644527330907,4.59,108.96,108.88,2.09509363]
[1644527331109,4.59,108.96,108.88,8.09509363]
[1644527331307,4.59,108.96,108.88,2.09509363]
[1644527331709,1.59693078,108.95,108.9,13.7754]
[1644527332111,7.59693078,108.95,108.86,1.84509363]
[1644527332311,4.59,108.94,108.84,16.89494956]
[1644527332534,23.6118,108.93,108.85,0.25]
[1644527332711,4.591,108.92,108.85,0.25]
[1644527333112,17.70987886,108.92,108.85,0.25]
[1644527333410,4.591,108.92,108.85,0.25]
[1644527333610,23.6118,108.93,108.84,45.38340299]
[1644527333811,23.6118,108.93,108.87,13.7785]
[1644527334010,10.591,108.95,108.87,13.7785]
[1644527334213,4.59,108.96,108.88,1.84509363]
[1644527334411,14.92647501,108.96,108.88,35.94121661]
[1644527335012,38.23647501,108.96,108.88,36.19121661]
[1644527335312,27.9,108.96,108.88,36.19121661]
[1644527335513,27.9,108.96,108.9,13.7748]
[1644527335713,23.31,108.96,108.9,13.7748]
[1644527335914,23.31,108.96,108.9,14.0248]
[1644527336717,23.31,108.96,108.9,54.47976708]
[1644527337215,1.30397908,109.0,108.91,1.84509363]
[1644527337413,1.30397908,109.0,108.93,13.7694]
[1644527337414,24.8587,109.0,108.93,13.7694]
[1644527337612,24.8587,109.0,108.93,23.1794]
[1644527337812,24.8587,109.0,108.93,23.4294]
[1644527338212,27.1508,109.01,108.93,71.20454969]
[1644527338414,22.5628,109.01,108.93,73.04964332]
[1644527338615,5.89197908,109.02,108.93,83.83964332]
[1644527338616,4.588,109.02,108.93,83.83964332]
[1644527338812,6.0,109.02,108.93,83.83964332]
[1644527339013,4.588,109.03,108.93,83.83964332]
[1644527339221,6.0,109.02,108.93,83.83964332]
[1644527339417,6.0,109.03,108.93,89.83964332]
[1644527339616,4.588,109.04,108.93,89.83964332]
[1644527339819,45.9493,109.03,108.93,89.83964332]
[1644527340038,4.588,109.04,108.93,89.83964332]
[1644527340417,4.587,109.05,108.93,112.34898504]
[1644527340617,76.68177908,109.07,108.93,125.36474288]
[1644527341218,77.38333544,109.07,108.93,125.36474288]
[1644527341619,76.07935636,109.07,108.93,125.36474288]
[1644527341821,76.07935636,109.07,108.93,110.73915307]
[1644527342222,77.38333544,109.07,108.93,110.73915307]
[1644527342623,76.07935636,109.07,108.93,110.73915307]
[1644527342824,83.38333544,109.07,108.93,110.73915307]
[1644527344026,83.38333544,109.07,108.93,124.23075307]
[1644527344226,82.07935636,109.07,108.93,124.23075307]
[1644527344427,81.3778,109.07,108.93,124.23075307]
[1644527345325,92.06196476,109.07,108.93,124.23075307]
[1644527345926,81.3778,109.07,108.93,215.93075307]
[1644527346126,81.3778,109.07,108.93,124.23075307]
[1644527346726,81.3778,109.07,108.93,138.04384288]
[1644527346930,81.3778,109.07,108.93,229.74384288]
[1644527347129,76.7908,109.07,108.93,229.74384288]
[1644527347331,80.84987714,109.07,108.93,229.74384288]
[1644527348156,4.587,109.06,108.93,229.74384288]
[1644527348454,4.587,109.06,108.94,6.17708527]
[1644527348653,47.7009,109.07,108.97,13.7606]
[1644527348858,47.7009,109.07,108.98,10.79]
[1644527349056,47.7009,109.07,108.98,12.63061604]
[1644527349256,47.7009,109.07,108.99,39.98592222]
[1644527349463,4.585,109.06,108.99,39.98592222]
[1644527349757,4.585,109.06,108.99,40.23592222]
[1644527350357,4.6237972,109.06,108.99,40.23592222]
[1644527350575,4.6237972,109.06,109.0,13.7606]
[1644527350758,0.0387972,109.06,109.01,37.31293194]
[1644527350959,47.7009,109.07,109.01,37.31293194]
[1644527351165,47.7009,109.07,109.01,37.56293194]
[1644527352062,53.7009,109.07,109.01,37.56293194]
[1644527352863,47.7009,109.07,109.02,13.7595]
[1644527353461,47.7009,109.07,109.03,35.18368001]
[1644527354765,47.7009,109.07,109.03,48.94188001]
[1644527354961,46.7009,109.07,109.03,48.94188001]
[1644527358569,0.0387972,109.09,109.03,48.94188001]
[1644527358868,4.585,109.11,109.03,57.35688001]
[1644527358869,0.0387972,109.1,109.03,57.35688001]
[1644527359672,0.0387972,109.1,109.03,59.19749605]
[1644527359875,0.0387972,109.1,109.03,69.98749605]
[1644527360071,0.0387972,109.1,109.03,75.98749605]
[1644527361276,0.0387972,109.1,109.03,69.98749605]
[1644527361675,0.0387972,109.1,109.03,75.98749605]
[1644527362481,0.0387972,109.11,109.03,75.98749605]
[1644527362682,0.0387972,109.12,109.03,84.09630425]
[1644527362882,0.0387972,109.1,109.03,84.09630425]
[1644527363083,0.0387972,109.14,109.03,84.09630425]
[1644527363783,1.34277628,109.14,109.03,84.09630425]
[1644527363982,0.0387972,109.13,109.03,84.09630425]
[1644527364182,4.6217972,109.13,109.03,84.09630425]
[1644527364384,4.6217972,109.13,109.03,78.09630425]
[1644527364584,23.6155,109.12,109.03,84.09630425]
[1644527364782,0.0387972,109.11,109.03,76.25568821]
[1644527364985,4.6217972,109.11,109.03,68.14688001]
[1644527365182,4.6217972,109.11,109.03,59.98188001]
[1644527365684,4.6217972,109.11,109.03,61.82249605]
[1644527366509,4.6217972,109.11,109.03,61.57249605]
[1644527367109,10.6217972,109.11,109.03,67.57249605]
[1644527367309,6.0387972,109.11,109.03,67.57249605]
[1644527367810,6.0387972,109.11,109.03,67.82249605]
[1644527368010,0.0387972,109.11,109.03,67.82249605]
[1644527369511,0.0387972,109.11,109.03,24.5482]
[1644527369711,1.34277628,109.11,109.03,13.7582]
[1644527369910,1.30397908,109.1,109.03,13.7582]
[1644527370111,4.583,109.09,109.03,13.7582]
[1644527370310,5.92577628,109.09,109.03,13.7582]
[1644527370712,0.0387972,109.09,109.03,13.7582]
[1644527370912,29.49987628,109.1,109.03,13.7582]
[1644527371113,1.30397908,109.09,109.03,13.7582]
[1644527371615,7.30397908,109.09,109.03,13.7582]
[1644527372217,4.583,109.08,109.03,13.7582]
[1644527373425,21.06427908,109.09,109.03,13.7582]
[1644527374318,21.06427908,109.09,108.97,10.79]
[1644527374518,21.06427908,109.09,108.95,14.0107]
[1644527374519,13.7645,109.06,108.95,14.0107]
[1644527374723,28.9457972,109.05,108.94,12.63061604]
[1644527374918,24.3597972,109.05,108.94,12.63061604]
[1644527375219,24.3597972,109.05,108.95,47.83204906]
[1644527375421,4.587,109.04,108.95,47.83204906]
[1644527375819,4.587,109.04,108.97,13.7657]
[1644527376018,4.587,109.04,108.98,42.77212623]
[1644527376519,38.1254972,109.05,108.98,42.77212623]
[1644527376719,4.586,109.04,108.98,56.53702623]
[1644527376922,24.3597972,109.05,108.98,56.53702623]
[1644527378620,30.3597972,109.05,108.98,56.53702623]
[1644527378820,30.3597972,109.05,108.98,56.78702623]
[1644527379420,24.3597972,109.05,108.98,56.78702623]
[1644527379623,0.0387972,109.05,108.98,56.78702623]